bitfinex-derivatives/quotes_BTCF0:USTF0_20210406
["timestamp","ask_amount","ask_price","bid_price","bid_amount"]
[1617711598996,5.09119908,58744.0,58743.0,0.27]
[1617711599195,5.09119908,58744.0,58720.0,0.27]
[1617711599396,5.09119908,58744.0,58743.0,0.27]
[1617711599598,4.35342655,58744.0,58743.0,0.27]
[1617711599795,4.15342655,58744.0,58717.0,0.27]
[1617711600096,4.65452691,58744.0,58743.0,0.27]
[1617711600395,4.65452691,58744.0,58737.0,0.10725655]
[1617711600597,0.56039462,58742.0,58737.0,0.10725655]
[1617711600995,0.94070084,58738.0,58737.0,0.10725655]
[1617711601295,0.94070084,58738.0,58737.0,3.83025655]
[1617711602100,0.94070084,58738.0,58737.0,3.723]
[1617711602101,1.94070084,58738.0,58737.0,3.723]
[1617711602297,2.04795739,58738.0,58737.0,3.723]
[1617711603198,1.04795739,58738.0,58737.0,3.723]
[1617711606101,1.61041496,58738.0,58737.0,3.723]
[1617711606301,1.61041496,58738.0,58737.0,3.82686]
[1617711606501,1.50315841,58738.0,58737.0,3.93411655]
[1617711609905,1.50315841,58738.0,58737.0,3.83025655]
[1617711610505,1.61041496,58738.0,58737.0,3.83025655]
[1617711611907,1.66181496,58738.0,58737.0,3.83025655]
[1617711612908,1.61041496,58738.0,58737.0,3.83025655]
[1617711614711,0.46886566,58738.0,58737.0,3.83025655]
[1617711615111,1.97545093,58738.0,58737.0,3.83025655]
[1617711615512,1.533511,58738.0,58737.0,3.83025655]
[1617711615811,1.666451,58738.0,58737.0,3.83025655]
[1617711616012,2.15869167,58738.0,58737.0,3.83025655]
[1617711616212,2.10839167,58738.0,58737.0,3.83025655]
[1617711616411,3.10839167,58738.0,58737.0,3.83025655]
[1617711617312,3.10839167,58738.0,58737.0,3.723]
[1617711617515,6.53819167,58738.0,58737.0,0.27]
[1617711617913,6.53819167,58738.0,58727.0,0.27]
[1617711618114,7.69346002,58738.0,58726.0,0.27]
[1617711618515,0.70346896,58736.0,58728.0,0.27]
[1617711618714,1.0,58727.0,58723.0,0.27]
[1617711618914,0.21699284,58737.0,58720.0,0.10725655]
[1617711618915,2.86936588,58729.0,58720.0,0.40606046]
[1617711619114,1.0,58727.0,58722.0,0.27]
[1617711619314,0.69980353,58726.0,58721.0,0.27]
[1617711619514,0.69980353,58726.0,58720.0,0.40606046]
[1617711619716,1.0,58724.0,58723.0,0.27]
[1617711619914,1.0,58724.0,58721.0,0.27]
[1617711620317,1.0,58722.0,58721.0,0.27]
[1617711620516,1.10725655,58722.0,58721.0,0.27]
[1617711620717,2.41308021,58722.0,58721.0,0.27]
[1617711621418,2.47342796,58722.0,58721.0,0.27]
[1617711622018,2.47342796,58722.0,58718.0,0.27]
[1617711622419,2.47342796,58722.0,58717.0,0.27]
[1617711622620,2.47342796,58722.0,58721.0,3.2411]
[1617711622819,1.10725655,58722.0,58721.0,3.2411]
[1617711623020,0.15765655,58722.0,58715.0,0.27]
[1617711623218,0.15765655,58722.0,58710.0,0.15885655]
[1617711623219,0.15765655,58722.0,58721.0,3.1608]
[1617711623418,0.10725655,58722.0,58721.0,3.1608]
[1617711623620,0.10725655,58722.0,58721.0,2.8908]
[1617711623918,0.10725655,58722.0,58721.0,3.1608]
[1617711624122,1.41310293,58722.0,58721.0,3.1608]
[1617711624621,1.41310293,58722.0,58721.0,3.26805655]
[1617711625922,1.41310293,58722.0,58721.0,3.5664395]
[1617711626325,0.91086977,58722.0,58721.0,3.5664395]
[1617711626725,0.80361322,58722.0,58721.0,3.92426233]
[1617711627126,0.80361322,58722.0,58721.0,3.5664395]
[1617711627627,0.80361322,58722.0,58721.0,1.03346333]
[1617711628125,0.80361322,58722.0,58721.0,0.6756395]
[1617711628526,0.80361322,58722.0,58721.0,1.03309418]
[1617711630129,0.80361322,58722.0,58721.0,0.6756395]
[1617711630530,0.80361322,58722.0,58721.0,0.37725655]
[1617711630531,1.30567688,58722.0,58721.0,0.37725655]
[1617711631030,0.80361322,58722.0,58721.0,0.67507063]
[1617711631430,1.30579451,58722.0,58721.0,0.67507063]
[1617711631832,1.0,58729.0,58721.0,0.37725655]
[1617711632235,1.3057215,58722.0,58721.0,0.37725655]
[1617711632637,2.46357805,58722.0,58721.0,0.37725655]
[1617711632834,1.41297805,58722.0,58721.0,0.37725655]
[1617711633235,1.4733297,58722.0,58721.0,0.37725655]
[1617711635638,1.5241297,58722.0,58721.0,0.37725655]
[1617711636538,1.4733297,58722.0,58721.0,0.37725655]
[1617711638041,1.5247297,58722.0,58721.0,0.37725655]
[1617711638243,1.4733297,58722.0,58721.0,0.37725655]
[1617711638544,0.10725655,58722.0,58721.0,0.37725655]
[1617711639140,1.46468153,58722.0,58721.0,0.37725655]
[1617711639641,1.30572498,58722.0,58721.0,3.48625655]
[1617711640141,1.36607434,58722.0,58721.0,3.48625655]
[1617711640843,0.80353851,58722.0,58721.0,3.78215664]
[1617711641244,0.86388374,58722.0,58721.0,3.78215664]
[1617711641442,0.86388374,58722.0,58721.0,4.78215664]
[1617711641842,0.86388374,58722.0,58721.0,4.13691483]
[1617711641843,0.85463851,58722.0,58721.0,4.13691483]
[1617711642142,0.80353851,58722.0,58721.0,5.13691483]
[1617711642343,0.86388185,58722.0,58721.0,5.13691483]
[1617711642644,0.86388185,58722.0,58721.0,4.13691483]
[1617711642846,0.80353851,58722.0,58721.0,4.13691483]
[1617711643144,0.42194555,58722.0,58721.0,4.13691483]
[1617711643645,0.36160237,58722.0,58721.0,2.02791483]
[1617711644045,0.42194548,58722.0,58721.0,2.02791483]
[1617711644647,0.36160237,58722.0,58721.0,2.02791483]
[1617711645046,0.36160237,58722.0,58721.0,1.02791483]
[1617711645246,0.36160237,58722.0,58721.0,2.52791483]
[1617711645448,0.36160237,58722.0,58721.0,3.52791483]
[1617711646047,0.36136613,58723.0,58721.0,4.05107719]
[1617711646246,0.36136613,58723.0,58721.0,3.05107719]
[1617711646649,0.36136613,58723.0,58722.0,1.0]
[1617711646849,0.36136613,58723.0,58722.0,2.23269521]
[1617711647049,0.36136613,58723.0,58722.0,2.50269521]
[1617711648458,0.36136613,58723.0,58722.0,1.50269521]
[1617711648857,0.36136613,58723.0,58722.0,2.50269521]
[1617711649052,0.66931819,58742.0,58722.0,2.50269521]
[1617711649053,0.36135585,58724.0,58722.0,2.50269521]
[1617711649453,0.36135037,58726.0,58723.0,1.14231166]
[1617711649852,0.3613487,58728.0,58725.0,1.08175327]
[1617711650051,0.3613487,58728.0,58725.0,1.13275327]
[1617711650352,0.36135054,58727.0,58726.0,0.27]
[1617711650752,0.36135054,58727.0,58726.0,1.41348557]
[1617711650951,0.36135054,58727.0,58726.0,2.41348557]
[1617711651152,0.36135054,58727.0,58726.0,1.41348557]
[1617711651353,0.36135054,58727.0,58726.0,1.14348557]
[1617711651652,0.36135054,58727.0,58726.0,1.41348557]
[1617711652653,0.36134009,58728.0,58727.0,0.15845655]
[1617711652853,0.41314009,58728.0,58727.0,0.15845655]
[1617711653055,0.36133906,58729.0,58727.0,0.42845655]
[1617711653254,0.36133906,58729.0,58727.0,3.29955655]
[1617711653454,0.36133906,58729.0,58727.0,4.44567578]
[1617711654055,0.36133906,58729.0,58728.0,1.23738173]
[1617711654456,0.36066507,58733.0,58728.0,0.98226159]
[1617711654855,0.36066507,58733.0,58732.0,0.29585526]
[1617711655155,0.36066507,58733.0,58732.0,0.34715526]
[1617711655356,0.36066507,58733.0,58732.0,0.61715526]
[1617711656557,0.36066507,58733.0,58732.0,0.3213]
[1617711657861,0.36066507,58733.0,58732.0,0.61758511]
[1617711658359,0.36064829,58735.0,58732.0,0.92172261]
[1617711658559,0.36064829,58735.0,58734.0,0.10725655]
[1617711658759,0.06033582,58741.0,58734.0,0.10725655]
[1617711658760,0.36064386,58736.0,58734.0,0.10725655]
[1617711659060,0.3606437,58737.0,58735.0,0.27]
[1617711659462,0.3606437,58737.0,58736.0,0.35639164]
[1617711659861,0.3606437,58737.0,58736.0,0.56606051]
[1617711662171,0.3606437,58737.0,58736.0,0.27]
[1617711662566,0.3606437,58737.0,58735.0,0.27]
[1617711662767,0.10725655,58736.0,58734.0,0.10725655]
[1617711663164,0.10725655,58736.0,58735.0,0.27]
[1617711663968,0.10725655,58736.0,58735.0,0.3216]
[1617711663969,0.46773042,58736.0,58735.0,0.3216]
[1617711664470,0.46773042,58736.0,58735.0,0.27]
[1617711665070,0.36047387,58736.0,58735.0,3.3546]
[1617711666372,0.42074696,58737.0,58735.0,3.65077597]
[1617711666572,0.42074696,58737.0,58735.0,0.56617597]
[1617711666771,0.44048496,58741.0,58735.0,0.27]
[1617711666772,0.4207488,58736.0,58735.0,0.27]
[1617711667072,0.36041044,58737.0,58735.0,0.56637675]
[1617711667472,0.36041044,58737.0,58735.0,0.61757675]
[1617711667673,0.36041322,58736.0,58735.0,0.27]
[1617711668172,0.42074457,58736.0,58735.0,0.27]
[1617711668372,0.42074457,58736.0,58735.0,3.3337]
[1617711668575,0.36041322,58736.0,58735.0,3.3843]
[1617711668873,0.36041322,58736.0,58735.0,3.3337]
[1617711669074,0.3604014,58738.0,58735.0,3.63007693]
[1617711669575,0.36039844,58739.0,58737.0,0.2963283]
[1617711669977,0.44046851,58742.0,58738.0,0.27]
[1617711670377,0.3604039,58739.0,58736.0,0.27]
[1617711670675,0.3604039,58739.0,58735.0,3.36008254]
[1617711670877,0.3604034,58737.0,58735.0,3.36008254]
[1617711671280,0.36040181,58738.0,58736.0,0.56644571]
[1617711671678,0.36040181,58738.0,58737.0,0.29640219]
[1617711672280,0.36039945,58739.0,58737.0,0.56640219]
[1617711673079,0.36039945,58739.0,58737.0,0.69751219]
[1617711673280,0.36039674,58738.0,58737.0,0.40111]
[1617711673480,0.36039674,58738.0,58737.0,3.20201]
[1617711673684,0.36038366,58741.0,58738.0,0.29608601]
[1617711674082,0.36038139,58742.0,58740.0,0.29605554]
[1617711674581,0.36037958,58744.0,58741.0,0.29590081]
[1617711674781,0.36037958,58744.0,58743.0,0.10725655]
[1617711675081,0.36037958,58744.0,58743.0,0.37725655]
[1617711675581,0.06032581,58764.0,58743.0,0.37725655]
[1617711675582,0.35992839,58747.0,58743.0,0.37725655]
[1617711675781,0.35992839,58747.0,58746.0,2.5043]
[1617711676185,0.17252839,58747.0,58746.0,2.7743]
[1617711676483,0.43985685,58755.0,58746.0,2.7743]
[1617711676782,0.43985685,58755.0,58747.0,0.2]
[1617711677083,0.43984737,58757.0,58749.0,1.12775]
[1617711677282,0.43984737,58757.0,58749.0,0.12775]
[1617711677483,0.49981293,58763.0,58749.0,0.12775]
[1617711677484,0.06031951,58754.0,58750.0,0.27]
[1617711677684,0.03791951,58754.0,58750.0,0.27]
[1617711677883,0.62666621,58769.0,58750.0,0.27]
[1617711677884,0.00931904,58756.0,58750.0,0.27]
[1617711678283,0.471,58769.0,58750.0,0.27]
[1617711678284,0.43983411,58760.0,58750.0,0.27]
[1617711678483,0.43983411,58760.0,58750.0,1.27]
[1617711678686,0.43983411,58760.0,58759.0,0.10725655]
[1617711679185,0.43983411,58760.0,58759.0,0.37725655]
[1617711680287,0.4400896,58761.0,58759.0,0.37725655]
[1617711680686,0.50040068,58760.0,58759.0,0.37725655]
[1617711681188,0.44008488,58760.0,58759.0,0.37725655]
[1617711681588,0.50039947,58760.0,58759.0,0.37725655]
[1617711682288,0.44005577,58763.0,58759.0,0.37725655]
[1617711682690,0.44005743,58762.0,58759.0,0.37725655]
[1617711683490,0.44005382,58764.0,58759.0,0.37725655]
[1617711684491,0.06031181,58768.0,58759.0,0.37725655]
[1617711684492,0.44005924,58763.0,58759.0,0.37725655]
[1617711684992,0.44007508,58761.0,58759.0,0.37725655]
[1617711685191,1.0,58760.0,58759.0,0.37725655]
[1617711685392,1.44010937,58760.0,58759.0,0.37725655]
[1617711685994,2.17348811,58760.0,58759.0,0.37725655]
[1617711686295,1.17348811,58760.0,58759.0,0.37725655]
[1617711686493,2.17348811,58760.0,58759.0,0.37725655]
[1617711686793,0.94023353,58760.0,58759.0,0.37725655]
[1617711686993,1.94023353,58760.0,58759.0,0.37725655]
[1617711687393,0.94023353,58760.0,58759.0,0.37725655]
[1617711687794,1.00055588,58760.0,58759.0,0.37725655]
[1617711688095,0.94023353,58760.0,58759.0,0.37725655]
[1617711689696,1.04569353,58760.0,58759.0,0.37725655]
[1617711689903,2.04569353,58760.0,58759.0,0.37725655]
[1617711690498,2.30601677,58760.0,58759.0,0.37725655]
[1617711690797,3.80601677,58760.0,58759.0,0.37725655]
[1617711690997,3.80601677,58760.0,58759.0,0.27]
[1617711691297,4.03685267,58760.0,58741.0,0.27]
[1617711691501,3.3557,58756.0,58741.0,0.27]
[1617711691699,1.5,58755.0,58736.0,0.29455285]
[1617711691899,1.5,58755.0,58735.0,0.29506242]
[1617711691900,1.59438428,58742.0,58735.0,0.29506242]
[1617711692098,1.59438428,58742.0,58737.0,0.27]
[1617711692299,0.44047086,58741.0,58737.0,0.27]
[1617711692500,1.44047086,58741.0,58734.0,0.29516737]
[1617711692700,1.44047086,58741.0,58738.0,0.27]
[1617711692701,0.44047407,58740.0,58738.0,0.27]
[1617711692999,0.44047407,58740.0,58739.0,0.10725655]
[1617711693500,0.5007997,58741.0,58739.0,0.37725655]
[1617711694904,0.10725655,58740.0,58739.0,0.37725655]
[1617711695303,0.16758584,58740.0,58739.0,0.37725655]
[1617711695503,0.10725655,58740.0,58739.0,0.37725655]
[1617711696204,0.54772676,58740.0,58739.0,0.37725655]
[1617711696402,0.10725655,58740.0,58739.0,0.37725655]
[1617711696904,0.16758554,58740.0,58739.0,0.37725655]
[1617711698307,0.60826668,58740.0,58739.0,0.37725655]
[1617711700408,0.60826668,58740.0,58739.0,3.21275655]
[1617711700607,0.65916668,58740.0,58739.0,3.21275655]
[1617711701307,0.16758554,58740.0,58739.0,3.21275655]
[1617711701507,0.9688356,58740.0,58739.0,3.21275655]
[1617711702710,1.0937256,58740.0,58739.0,3.21275655]
[1617711706712,2.2822127,58740.0,58739.0,3.21275655]
[1617711706913,1.2822127,58740.0,58739.0,0.37725655]
[1617711707114,1.0937256,58740.0,58739.0,0.37725655]
[1617711707315,2.0937256,58740.0,58739.0,0.37725655]
[1617711707515,2.59508096,58740.0,58739.0,0.37725655]
[1617711707714,1.59508096,58740.0,58739.0,0.37725655]
[1617711708921,1.0937256,58740.0,58739.0,0.37725655]
[1617711709117,0.98646905,58740.0,58739.0,0.37725655]
[1617711709416,0.86157905,58740.0,58739.0,0.37725655]
[1617711710217,0.80125006,58740.0,58739.0,0.37725655]
[1617711713319,0.8615805,58740.0,58739.0,0.37725655]
[1617711713518,1.0101105,58740.0,58739.0,0.37725655]
[1617711713720,0.94978006,58740.0,58739.0,0.37725655]
[1617711714319,1.01011057,58740.0,58739.0,0.37725655]
[1617711716220,2.01011057,58740.0,58739.0,0.37725655]
[1617711717526,2.01011057,58740.0,58739.0,3.75295655]
[1617711717724,1.01011057,58740.0,58739.0,3.75295655]
[1617711718023,0.86158057,58740.0,58739.0,3.75295655]
[1617711718224,0.86158057,58740.0,58739.0,0.37725655]
[1617711718425,0.80125006,58740.0,58739.0,0.37725655]
[1617711718925,1.89569415,58740.0,58739.0,0.37725655]
[1617711720027,2.39717921,58740.0,58739.0,0.37725655]
[1617711720928,1.89569415,58740.0,58739.0,0.37725655]
[1617711721128,2.0029507,58740.0,58739.0,0.37725655]
[1617711721528,1.0029507,58740.0,58739.0,0.37725655]
[1617711722533,1.50451484,58740.0,58739.0,0.37725655]
[1617711723332,1.0029507,58740.0,58739.0,0.37725655]
[1617711725337,1.0029507,58740.0,58739.0,2.95005655]
[1617711728838,0.89569415,58740.0,58739.0,2.95005655]
[1617711729238,0.89569415,58740.0,58739.0,3.06764655]
[1617711729439,0.80125006,58740.0,58739.0,3.36322087]
[1617711731744,0.36057254,58740.0,58739.0,3.71786876]
[1617711733344,0.80206468,58740.0,58739.0,3.71786876]
[1617711733843,0.80206468,58740.0,58739.0,3.36322087]
[1617711734042,0.80206468,58740.0,58739.0,0.79042087]
[1617711734244,0.80206468,58740.0,58739.0,1.14550247]
[1617711734644,0.80206468,58740.0,58739.0,0.79042087]
[1617711735045,0.80206468,58740.0,58739.0,0.67283087]
[1617711736047,0.80206468,58740.0,58739.0,3.82053087]
[1617711738150,0.80206468,58740.0,58739.0,4.17580746]
[1617711739352,0.36057254,58740.0,58739.0,4.17580746]
[1617711739752,0.44989718,58740.0,58739.0,4.60970211]
[1617711740051,0.36057254,58740.0,58739.0,4.60970211]
[1617711740653,0.36057254,58740.0,58739.0,4.17580746]
[1617711742456,0.80220315,58740.0,58739.0,4.17580746]
[1617711743059,0.36057254,58740.0,58739.0,4.17580746]
[1617711743356,0.43257662,58740.0,58739.0,4.17580746]
[1617711743857,0.36057254,58740.0,58739.0,4.17580746]
[1617711744158,0.43257556,58740.0,58739.0,4.17580746]
[1617711744659,0.36057254,58740.0,58739.0,4.17580746]
[1617711745662,0.80220396,58740.0,58739.0,4.17580746]
[1617711749967,0.36057254,58740.0,58739.0,4.61068031]
[1617711750368,0.8024744,58740.0,58739.0,4.17580746]
[1617711752170,0.8024744,58740.0,58739.0,4.61080308]
[1617711752971,0.7598744,58740.0,58739.0,5.61080308]
[1617711753272,0.44185707,58747.0,58746.0,0.10725655]
[1617711753474,0.44185707,58747.0,58746.0,0.29031655]
[1617711753672,0.16580908,58754.0,58746.0,0.23911655]
[1617711753872,0.16580908,58754.0,58746.0,0.50911655]
[1617711754073,0.5020627,58758.0,58753.0,0.29617227]
[1617711754473,0.5020627,58758.0,58754.0,0.27]
[1617711754674,0.50205878,58760.0,58758.0,0.0512]
[1617711754874,0.50205878,58760.0,58757.0,0.29608058]
[1617711755174,0.27128009,58772.0,58728.0,0.4694]
[1617711755175,0.98971005,58763.0,58759.0,0.35608374]
[1617711755373,0.98971005,58763.0,58762.0,0.04694362]
[1617711755673,0.4877,58763.0,58762.0,0.34268593]
[1617711755878,0.4877,58763.0,58762.0,0.61268593]
[1617711757975,0.50200902,58767.0,58762.0,0.61268593]
[1617711758176,0.50192797,58769.0,58766.0,2.5904]
[1617711758377,0.50192797,58769.0,58766.0,2.8604]
[1617711758880,0.50191778,58771.0,58768.0,0.29493433]
[1617711759078,0.50191778,58771.0,58768.0,2.94513433]
[1617711759278,0.50191778,58771.0,58769.0,0.27]
[1617711759479,0.50190706,58773.0,58770.0,0.40215569]
[1617711759878,0.50190855,58772.0,58771.0,0.29483289]
[1617711760078,0.50190855,58772.0,58771.0,0.50570289]
[1617711760278,0.50190855,58772.0,58771.0,0.45500289]
[1617711760679,0.50190855,58772.0,58771.0,0.72500289]
[1617711761780,1.49940429,58782.0,58771.0,3.79227]
[1617711761980,1.49940429,58782.0,58771.0,0.43017]
[1617711762183,0.49940429,58782.0,58781.0,3.3605]
[1617711762581,0.49940251,58783.0,58781.0,3.6305]
[1617711762781,1.0,58782.0,58781.0,3.6305]
[1617711762982,1.49940106,58782.0,58781.0,3.6305]
[1617711763182,0.49940106,58782.0,58781.0,3.6305]
[1617711763382,0.49940333,58783.0,58781.0,3.73775655]
[1617711764284,1.10725655,58784.0,58781.0,3.73775655]
[1617711764582,1.0,58782.0,58781.0,3.73775655]
[1617711764982,0.10725655,58784.0,58781.0,3.73775655]
[1617711765585,1.0,58782.0,58781.0,0.37725655]
[1617711766286,1.0,58783.0,58781.0,0.37725655]
[1617711766485,1.10725655,58784.0,58781.0,0.37725655]
[1617711767785,0.10725655,58784.0,58781.0,0.37725655]
[1617711774389,0.1143,58785.0,58781.0,0.37725655]
[1617711774601,0.1143,58785.0,58783.0,1.10257]
[1617711774795,0.1143,58785.0,58784.0,1.0]
[1617711774999,0.1143,58785.0,58784.0,1.27]
[1617711776798,0.1143,58785.0,58784.0,2.77]
[1617711777199,0.43773609,58808.0,58784.0,1.97]
[1617711777399,0.43769403,58811.0,58799.0,0.10725655]
[1617711777599,0.43769403,58811.0,58799.0,1.92044655]
[1617711777799,0.43769403,58811.0,58799.0,3.19044655]
[1617711778099,0.4795,58822.0,58799.0,3.19044655]
[1617711778100,0.008,58800.0,58799.0,3.19044655]
[1617711778399,0.1379336,58827.0,58799.0,3.19044655]
[1617711778400,0.43761849,58823.0,58799.0,2.19044655]
[1617711778700,0.43761849,58823.0,58818.0,1.0]
[1617711779002,0.43757928,58829.0,58822.0,1.0]
[1617711779200,0.43757928,58829.0,58827.0,1.0]
[1617711779399,0.27409946,58844.0,58827.0,1.10725655]
[1617711779400,0.43756283,58831.0,58827.0,1.10725655]
[1617711779601,0.43756283,58831.0,58827.0,0.10725655]
[1617711779801,0.71754614,58834.0,58827.0,0.37725655]
[1617711780204,0.43753469,58833.0,58827.0,0.37725655]
[1617711780604,0.43753469,58833.0,58827.0,1.37725655]
[1617711780804,0.28,58834.0,58827.0,1.37725655]
[1617711780805,0.71740363,58834.0,58827.0,0.37725655]
[1617711781304,0.28,58834.0,58827.0,1.37725655]
[1617711781705,0.71740591,58834.0,58827.0,0.37725655]
[1617711782105,0.28,58834.0,58827.0,0.37725655]
[1617711782304,1.0,58831.0,58827.0,0.37725655]
[1617711782507,1.0,58829.0,58827.0,0.37725655]
[1617711782905,0.43744479,58832.0,58827.0,0.37725655]
[1617711783204,0.28,58834.0,58827.0,0.37725655]
[1617711783205,0.43745532,58828.0,58827.0,0.37725655]
[1617711783606,0.10725655,58828.0,58827.0,0.37725655]
[1617711783806,0.43745561,58829.0,58827.0,3.07415655]
[1617711784007,0.43745567,58830.0,58827.0,3.07415655]
[1617711784405,0.43745567,58830.0,58827.0,3.21938655]
[1617711785011,0.43745336,58833.0,58827.0,3.21938655]
[1617711785410,0.28,58834.0,58827.0,3.21938655]
[1617711785611,0.28,58834.0,58833.0,0.10725655]
[1617711786012,0.28,58834.0,58833.0,0.37725655]
[1617711790615,0.28,58834.0,58833.0,1.37725655]
[1617711791517,0.28,58834.0,58833.0,0.37725655]
[1617711791719,0.28,58834.0,58833.0,1.37725655]
[1617711791917,0.28,58834.0,58833.0,0.37725655]
[1617711792217,0.28,58834.0,58833.0,1.37725655]
[1617711793218,0.28,58834.0,58833.0,0.37725655]
[1617711793518,0.28,58834.0,58833.0,1.37725655]
[1617711795021,0.28,58834.0,58833.0,1.87725655]
[1617711795320,0.28,58834.0,58833.0,2.87725655]
[1617711796022,0.28,58834.0,58833.0,1.87725655]
[1617711796223,0.28,58834.0,58833.0,2.87725655]
[1617711797323,0.28,58834.0,58833.0,2.92765655]
[1617711797525,0.28,58834.0,58833.0,2.87725655]
[1617711799530,0.1331,58834.0,58833.0,2.87725655]
[1617711799729,0.10725655,58859.0,58853.0,2.686]
[1617711799930,0.10725655,58859.0,58853.0,2.81135]
[1617711800131,0.10725655,58859.0,58854.0,0.27]
[1617711800331,0.35454951,58875.0,58854.0,1.77]
[1617711800531,0.35454951,58875.0,58858.0,1.0]
[1617711800732,0.35447967,58883.0,58874.0,1.0]
[1617711800932,0.35447967,58883.0,58874.0,1.15746]
[1617711801232,0.35445622,58890.0,58889.0,3.5939]
[1617711801631,0.10725655,58890.0,58889.0,3.5939]
[1617711801832,0.15785655,58890.0,58889.0,3.8539]
[1617711802035,0.52191363,58890.0,58889.0,3.8539]
[1617711802637,0.52191363,58890.0,58889.0,3.85289644]
[1617711802638,0.10725655,58890.0,58889.0,3.85289644]
[1617711802835,0.35437839,58898.0,58889.0,3.85289644]
[1617711803034,0.35437839,58898.0,58889.0,0.26]
[1617711803236,0.35437839,58898.0,58891.0,1.0]
[1617711803436,0.29532936,58897.0,58890.0,1.0]
[1617711803635,0.29532936,58897.0,58885.0,0.27]
[1617711803636,0.29532936,58897.0,58896.0,0.10725655]
[1617711803835,0.29532936,58897.0,58896.0,0.23500655]
[1617711804036,0.29531825,58898.0,58896.0,2.91560655]
[1617711804235,0.29531825,58898.0,58896.0,0.24500655]
[1617711804437,0.29531767,58899.0,58896.0,0.24500655]
[1617711805236,0.29531767,58899.0,58898.0,1.0]
[1617711805436,0.29531767,58899.0,58898.0,4.0194]
[1617711805736,0.29531767,58899.0,58898.0,3.2894]
[1617711806337,0.29531767,58899.0,58898.0,4.2894]
[1617711806940,0.29531767,58899.0,58898.0,3.2894]
[1617711807342,0.64967341,58899.0,58898.0,3.2894]
[1617711807842,0.64967341,58899.0,58898.0,4.2894]
[1617711808245,0.4689,58902.0,58898.0,3.2894]
[1617711809245,0.00991883,58901.0,58898.0,3.2894]
[1617711809648,0.00991881,58899.0,58898.0,3.2894]
[1617711809845,0.00991881,58899.0,58898.0,0.27]
[1617711810046,0.00991804,58903.0,58898.0,0.27]
[1617711810246,0.00991804,58903.0,58898.0,1.27]
[1617711810447,0.3046116,58904.0,58898.0,1.27]
[1617711810649,0.00991807,58904.0,58897.0,1.27]
[1617711810847,0.00991807,58904.0,58898.0,1.0]
[1617711811047,0.00991807,58904.0,58898.0,1.26]
[1617711811247,0.00991807,58904.0,58899.0,0.0504]
[1617711811747,0.00991807,58904.0,58897.0,0.27]
[1617711811748,0.00991828,58900.0,58897.0,0.27]
[1617711811949,0.29470341,58900.0,58899.0,0.26]
[1617711812347,0.29470341,58900.0,58897.0,0.27]
[1617711812548,0.00500819,58900.0,58899.0,0.27]
[1617711812948,0.00991819,58901.0,58897.0,0.26899665]
[1617711812949,0.00500819,58901.0,58897.0,0.26899665]
[1617711813148,0.00500819,58901.0,58898.0,0.27]
[1617711813549,0.00500819,58901.0,58899.0,0.0504]
[1617711813850,0.00500819,58901.0,58900.0,3.1479]
[1617711814351,0.00500819,58901.0,58900.0,3.4179]
[1617711814950,0.00500819,58901.0,58900.0,0.27]
[1617711815450,0.00500819,58901.0,58896.0,1.10725655]
[1617711815451,0.00500819,58901.0,58897.0,0.27]
[1617711815653,0.29468781,58901.0,58900.0,0.27]
[1617711815851,0.29468781,58901.0,58900.0,3.1866]
[1617711816052,0.29468781,58901.0,58900.0,2.9166]
[1617711816352,0.64829484,58901.0,58900.0,3.1866]
[1617711817258,0.29468781,58901.0,58900.0,3.1866]
[1617711817854,0.40194436,58901.0,58900.0,3.237]
[1617711818055,0.40194436,58901.0,58900.0,3.1866]
[1617711819460,0.11225553,58901.0,58900.0,3.1866]
[1617711819658,0.11225553,58901.0,58900.0,3.2377]
[1617711819860,0.11225553,58901.0,58900.0,3.1866]
[1617711820059,0.10931495,58901.0,58900.0,3.1866]
[1617711820559,0.0020584,58901.0,58900.0,3.1866]
[1617711821261,0.0020584,58901.0,58900.0,0.27]
[1617711821760,0.0020584,58901.0,58897.0,0.27]
[1617711821960,0.0020584,58901.0,58900.0,0.26]
[1617711821961,0.29499891,58901.0,58900.0,0.26]
[1617711822462,0.29500085,58898.0,58897.0,0.27]
[1617711822660,0.29500085,58898.0,58896.0,0.10725655]
[1617711822862,0.88977723,58901.0,58897.0,0.3213]
[1617711823261,0.29500169,58898.0,58897.0,0.3213]
[1617711823860,0.2950025,58899.0,58897.0,0.26899671]
[1617711824061,0.29500147,58898.0,58897.0,0.26899671]
[1617711824261,0.39997147,58898.0,58897.0,0.26899671]
[1617711825763,0.29500147,58898.0,58897.0,0.26899671]
[1617711826164,0.64898946,58898.0,58897.0,0.26899671]
[1617711826763,0.29500147,58898.0,58897.0,0.26899671]
[1617711828065,0.34520147,58898.0,58897.0,0.26899671]
[1617711828565,0.29500147,58898.0,58897.0,0.26899671]
[1617711830067,0.34650147,58898.0,58897.0,0.26899671]
[1617711830268,0.29500147,58898.0,58897.0,0.26899671]
[1617711831166,0.88989241,58898.0,58897.0,0.26899671]
[1617711831767,0.64909595,58898.0,58897.0,0.26899671]
[1617711832466,0.64909595,58898.0,58897.0,1.76899671]
[1617711832667,0.64909595,58898.0,58897.0,2.76899671]
[1617711832870,0.00206485,58898.0,58897.0,2.76899671]
[1617711833069,0.00206485,58898.0,58897.0,1.76899671]
[1617711833268,0.00206485,58898.0,58897.0,4.79709671]
[1617711833471,0.65292264,58898.0,58897.0,5.79709671]
[1617711833868,0.29679201,58898.0,58897.0,5.79709671]
[1617711834269,0.3561244,58900.0,58897.0,5.79709671]
[1617711834468,0.49457633,58911.0,58897.0,4.79709671]
[1617711834668,1.11635183,58932.0,58897.0,4.79709671]
[1617711834669,0.00998827,58903.0,58897.0,4.79709671]
[1617711834868,0.00998827,58903.0,58899.0,6.0]
[1617711835169,0.0099878,58909.0,58902.0,2.5]
[1617711835370,0.0099878,58909.0,58902.0,1.5]
[1617711835570,0.0099878,58909.0,58902.0,1.77]
[1617711835770,0.0099878,58909.0,58908.0,1.10725655]
[1617711835970,0.29449575,58924.0,58908.0,1.10725655]
[1617711836171,0.49454616,58921.0,58908.0,1.37725655]
[1617711836471,0.49454616,58921.0,58910.0,1.0]
[1617711836770,0.49454616,58921.0,58916.0,1.0]
[1617711836971,0.49454616,58921.0,58917.0,1.5]
[1617711837172,0.49454616,58921.0,58919.0,1.15593]
[1617711837371,0.49454616,58921.0,58920.0,1.0]
[1617711837671,0.4944,58931.0,58920.0,1.26899688]
[1617711837873,0.4944,58931.0,58930.0,0.10725655]
[1617711838072,0.4944,58931.0,58930.0,1.60725655]
[1617711838271,0.4944,58931.0,58930.0,2.87725655]